lending/lending_fUSD_20251111
["ID","MTS","AMOUNT","RATE_DAILY","PERIOD"]
[393620473,1762858244434,-205.930075,0.00039841,7]
[393620474,1762858244443,-205.930075,0.00039841,7]
[393620475,1762858244454,-205.930075,0.00039841,7]
[393620476,1762858244463,-205.930075,0.00039841,7]
[393620477,1762858244471,-205.930075,0.00039841,7]
[393620478,1762858244481,-205.930075,0.00039841,7]
[393620479,1762858244492,-205.930075,0.00039841,7]
[393620480,1762858244501,-205.930075,0.00039841,7]
[393620481,1762858244513,-205.930075,0.00039841,7]
[393620482,1762858244523,-205.930075,0.00039841,7]
[393620483,1762858244532,-205.930075,0.00039841,7]
[393620484,1762858244541,-205.930075,0.00039841,7]
[393620485,1762858244551,-205.930075,0.00039841,7]
[393620486,1762858244567,-205.930075,0.00039841,7]
[393620487,1762858244581,-205.930075,0.00039841,7]
[393620488,1762858244591,-205.930075,0.00039841,7]
[393620489,1762858244601,-205.930079,0.00039841,7]
[393620490,1762858244610,-152.080085,0.00039841,120]
[393620491,1762858244620,-151.0,0.00039841,120]
[393620492,1762858244629,-151.0,0.00039841,120]
[393620493,1762858244638,-151.0,0.00039841,120]
[393620494,1762858244647,-151.0,0.00039841,120]
[393620495,1762858244657,-151.0,0.00039841,120]
[393620496,1762858244667,-285.150355,0.00039841,120]
[393620497,1762858244676,-153.008677,0.00039841,120]
[393620498,1762858244686,-151.0,0.00039841,60]
[393620499,1762858244696,-153.601214,0.00039841,60]
[393620500,1762858244706,-151.0,0.00039841,120]
[393620501,1762858244715,-151.0,0.00039841,120]
[393620502,1762858244724,-151.0,0.00039841,120]
[393620503,1762858244737,-151.0,0.00039841,120]
[393620504,1762858244746,-151.0,0.00039841,120]
[393620505,1762858244755,-151.0,0.00039841,120]
[393620506,1762858244764,-151.0,0.00039841,120]
[393620507,1762858244772,-151.0,0.00039841,120]
[393620508,1762858244782,-151.0,0.00039841,120]
[393620509,1762858244791,-151.0,0.00039841,120]
[393620510,1762858244800,-151.0,0.00039841,120]
[393620511,1762858244809,-151.0,0.00039841,120]
[393620512,1762858244818,-151.0,0.00039841,120]
[393620513,1762858244827,-193.620438,0.00039841,120]
[393620514,1762858244835,-151.0,0.00039841,120]
[393620515,1762858244845,-166.596624,0.00039841,120]
[393620516,1762858244855,-151.0,0.00039841,120]
[393620517,1762858244864,-151.0,0.00039841,120]
[393620518,1762858244873,-151.0,0.00039841,120]
[393620519,1762858244882,-151.0,0.00039841,120]
[393620520,1762858244891,-151.0,0.00039841,120]
[393620521,1762858244899,-151.0,0.00039841,120]
[393620522,1762858244909,-151.0,0.00039841,120]
[393620523,1762858244918,-195.326533,0.00039841,120]
[393620524,1762858244927,-151.0,0.00039841,120]
[393620525,1762858244936,-151.0,0.00039841,120]
[393620526,1762858244945,-151.0,0.00039841,120]
[393620527,1762858244954,-174.507721,0.00039841,120]
[393620528,1762858244963,-151.0,0.00039841,120]
[393620529,1762858244972,-151.0,0.00039841,120]
[393620530,1762858244981,-159.554663,0.00039841,120]
[393620531,1762858244990,-151.0,0.00039841,120]
[393620532,1762858244999,-263.256226,0.00039841,120]
[393620533,1762858245008,-153.801165,0.00039841,120]
[393620534,1762858245017,-183.207224,0.00039841,120]
[393620535,1762858245026,-183.207224,0.00039841,120]
[393620536,1762858245035,-151.827469,0.00039841,120]
[393620537,1762858245045,-183.207224,0.00039841,120]
[393620538,1762858245054,-151.0,0.00039841,120]
[393620539,1762858245063,-183.207224,0.00039841,120]
[393620540,1762858245071,-154.151378,0.00039841,120]
[393620541,1762858245080,-183.207224,0.00039841,120]
[393620542,1762858245089,-151.863638,0.00039841,120]
[393620543,1762858245098,-183.207224,0.00039841,120]
[393620544,1762858245107,-183.207224,0.00039841,120]
[393620545,1762858245116,-183.207224,0.00039841,120]
[393620546,1762858245126,-153.35788,0.00039841,120]
[393620547,1762858245135,-183.207224,0.00039841,120]
[393620548,1762858245144,-151.0,0.00039841,120]
[393620549,1762858245154,-183.207224,0.00039841,120]
[393620550,1762858245163,-151.0,0.00039841,120]
[393620551,1762858245172,-183.207224,0.00039841,120]
[393620552,1762858245182,-151.0,0.00039841,120]
[393620553,1762858245191,-183.207224,0.00039841,120]
[393620554,1762858245200,-183.207224,0.00039841,120]
[393620555,1762858245209,-183.207224,0.00039841,120]
[393620556,1762858245218,-183.207224,0.00039841,120]
[393620557,1762858245228,-183.207224,0.00039841,120]
[393620558,1762858245236,-183.207224,0.00039841,120]
[393620559,1762858245246,-183.207224,0.00039841,120]
[393620560,1762858245255,-151.0,0.00039841,120]
[393620561,1762858245264,-183.207224,0.00039841,120]
[393620562,1762858245274,-151.0,0.00039841,120]
[393620563,1762858245283,-183.207226,0.00039841,120]
[393620564,1762858245293,-152.801232,0.00039841,120]
[393620565,1762858245302,-151.0,0.00039841,120]
[393620566,1762858245312,-157.361959,0.00039841,120]
[393620567,1762858245321,-151.0,0.00039841,120]
[393620568,1762858245330,-151.0,0.00039841,120]
[393620569,1762858245340,-151.0,0.00039841,120]
[393620570,1762858245349,-151.0,0.00039841,120]
[393620571,1762858245358,-151.0,0.00039841,120]
[393620572,1762858245367,-151.0,0.00039841,120]
[393620573,1762858245379,-161.290265,0.00039841,120]
[393620574,1762858245388,-151.0,0.00039841,120]
[393620575,1762858245397,-151.0,0.00039841,120]
[393620576,1762858245406,-151.0,0.00039841,120]
[393620577,1762858245416,-257.799915,0.00039841,120]
[393620578,1762858245428,-151.0,0.00039841,120]
[393620579,1762858245437,-165.664254,0.00039841,120]
[393620580,1762858245446,-151.0,0.00039841,120]
[393620581,1762858245455,-151.0,0.00039841,120]
[393620582,1762858245465,-151.0,0.00039841,120]
[393620583,1762858245474,-151.0,0.00039841,120]
[393620584,1762858245483,-151.0,0.00039841,120]
[393620585,1762858245492,-151.0,0.00039841,120]
[393620586,1762858245501,-196.232164,0.00039841,120]
[393620587,1762858245510,-151.0,0.00039841,120]
[393620588,1762858245519,-151.0,0.00039841,120]
[393620589,1762858245528,-151.0,0.00039841,120]
[393620590,1762858245537,-151.0,0.00039841,120]
[393620591,1762858245546,-151.0,0.00039841,120]
[393620592,1762858245556,-151.0,0.00039841,120]
[393620593,1762858245566,-208.187878,0.00039841,120]
[393620594,1762858245576,-288.458231,0.00039841,120]
[393620595,1762858245586,-274.94546,0.00039841,15]
[393620596,1762858245595,-151.0,0.00039841,120]
[393620597,1762858245604,-151.0,0.00039841,120]
[393620598,1762858245613,-178.925692,0.00039841,120]
[393620599,1762858245622,-151.0,0.00039846,14]
[393620600,1762858245631,-5155.78901987,0.00039848,29]
[393620601,1762858245641,-234.39226363,0.00039848,31]
[393620602,1762858245650,-2383745.80711878,0.00039849,7]
[393620603,1762858245797,-4046.86987366,0.00039849,7]
[393620604,1762858245834,-2072.05180528,0.00039849,7]
[393620605,1762858245845,-224402.10957447,0.00039849,7]
[393620606,1762858245856,-246784.86775968,0.00039849,7]
[393620607,1762858245868,-2483.83547651,0.00039849,7]
[393620608,1762858245879,-4209.0,0.00039849,7]
[393620609,1762858245889,-2763.82082953,0.00039849,7]
[393620610,1762858245900,-4211.89649743,0.00039849,7]
[393620611,1762858245912,-3441.90960667,0.00039849,7]
[393620612,1762858245924,-1233.13593108,0.00039849,7]
[393620613,1762858245935,-500.0,0.00039849,7]
[393620614,1762858245945,-9445.72368558,0.00039849,7]
[393620615,1762858245957,-425.84246072,0.00039849,7]
[393620616,1762858246258,-564.11572434,0.00039849,7]
[393620617,1762858246280,-294.499,0.00037104,2]
[393620618,1762858246289,-115037.98927659,0.00039849,7]
[393620619,1762858246300,-2809226.21915584,0.00039849,7]
[393620621,1762858246737,-8.2963923,0.00039849,7]
[393620622,1762858246750,-52874.13895295,0.00039849,7]
[393620623,1762858246872,-646.98178923,0.00039849,7]
[393620624,1762858246884,-445.41,0.00039849,7]
[393620625,1762858246894,-103298.07471381,0.00039849,7]
[393620626,1762858246930,-4701.99449409,0.00039849,7]
[393620627,1762858246941,-1269.53174564,0.00039849,7]
[393620628,1762858246951,-4400.33003597,0.00039849,7]
[393620629,1762858246962,-556.81298057,0.00039849,7]
[393620630,1762858246973,-2919.25678843,0.00039849,7]
[393620631,1762858246983,-378.43528873,0.00039849,7]
[393620635,1762858651530,150.0,0.00014298,2]
[393620636,1762858651657,616.7351745,0.00014363,2]
[393620637,1762858651714,723.3313775,0.00014428,2]
[393620638,1762858651789,829.9275805,0.00014493,2]
[393620639,1762858651823,936.52378349,0.00014557,2]
[393620640,1762858651883,1043.11998649,0.00014622,2]
[393620641,1762858651924,1149.71618949,0.00014687,2]
[393620642,1762858651960,1256.31239249,0.00014752,2]
[393620643,1762858652001,1362.90859549,0.00014817,2]
[393620644,1762858652035,1576.10100149,0.00014947,2]
[393620645,1762858652072,355.33391856,0.00014882,2]
[393620646,1762858652095,1114.17087993,0.00014882,2]
[393620647,1762858657020,920.65,9.533e-05,2]
[393620648,1762858657242,920.65,0.00010015,2]
[393620649,1762858657672,920.65,0.00010497,2]
[393620650,1762858657875,920.65,0.00010979,2]
[393620651,1762858658080,920.65,0.00011461,2]
[393620652,1762858658282,920.65,0.00011943,2]
[393620653,1762858658688,920.65,0.00012425,2]
[393620654,1762858658772,920.65,0.00012907,2]
[393620655,1762858658956,920.65,0.00013389,2]
[393620656,1762858659167,599.98912007,0.00013871,2]
[393620657,1762858659193,320.66087993,0.00013871,2]
[393620658,1762858659380,920.65,0.00014353,2]
[393620659,1762858659614,920.65,0.00014835,2]
[393620660,1762858834119,-500.0,0.00015012,2]
[393620661,1762858834215,-197.55129999,0.00015012,2]
[393620662,1762858834316,-151.0,0.00015012,2]
[393620663,1762858834419,-151.0,0.00015012,2]
[393620664,1762858834555,-151.0,0.00015012,2]
[393620665,1762858834668,-151.0,0.00015012,2]
[393620667,1762858882077,150.0,0.00021239,120]
[393620668,1762858887279,166.66,0.00014077,2]
[393620669,1762858887488,166.66,0.00014373,2]
[393620670,1762858887699,166.66,0.00014669,2]
[393620671,1762858887936,166.66,0.00014966,2]
[393620672,1762858945682,150.0,0.00014758,2]
[393620674,1762858956619,150.0,0.00014298,2]
[393620675,1762858956743,640.97551416,0.00014363,2]
[393620676,1762858956797,751.7614055,0.00014428,2]
[393620677,1762858956909,862.54729684,0.00014493,2]
[393620678,1762858956943,973.33318817,0.00014557,2]
[393620679,1762858956982,1084.11907951,0.00014622,2]
[393620680,1762858957017,1194.90497085,0.00014687,2]
[393620681,1762858957087,1305.69086219,0.00014752,2]
[393620682,1762858957125,1416.47675352,0.00014817,2]
[393620683,1762858957162,1470.20092926,0.00014882,2]
[393620684,1762858957184,57.0617156,0.00014882,2]
[393620685,1762858957225,1638.0485362,0.00014947,2]
[393620686,1762859199221,999.0,0.00014588,3]
[393620689,1762859262602,150.0,0.00014298,2]
[393620690,1762859262732,740.90011215,0.00014428,2]
[393620691,1762859262789,631.71483246,0.00014363,2]
[393620692,1762859262866,850.08539183,0.00014493,2]
[393620693,1762859262902,959.27067151,0.00014557,2]
[393620694,1762859262939,1068.4559512,0.00014622,2]
[393620695,1762859262997,1177.64123088,0.00014687,2]
[393620696,1762859263032,1286.82651057,0.00014752,2]
[393620697,1762859263067,1396.01179025,0.00014817,2]
[393620698,1762859263099,1505.19706994,0.00014882,2]
[393620699,1762859263127,233.90643921,0.00014947,2]
[393620700,1762859263146,1380.47591041,0.00014947,2]
[393620701,1762859275302,239.19117817,0.00014912,2]
[393620703,1762859359939,274.74,0.00013699,2]
[393620717,1762859432141,-1023.11758796,0.00015012,2]
[393620719,1762859432152,-700.45004135,0.00015012,2]
[393620721,1762859432161,-250.0,0.00015012,2]
[393620723,1762859432170,-294.27050177,0.00015012,2]
[393620725,1762859432179,-250.0,0.00015034,2]
[393620726,1762859432188,-1832.75290899,0.00015077,2]
[393620727,1762859432198,-1941.93818868,0.00015142,2]
[393620728,1762859432206,-239.19117816,0.00015185,2]
[393620729,1762859432214,-1200.0,0.00015206,2]
[393620730,1762859432222,-2051.12346836,0.00015207,2]
[393620731,1762859432232,-166.66,0.00015262,2]
[393620732,1762859432241,-300.0,0.00015268,2]
[393620733,1762859432250,-300.0,0.00015268,2]
[393620734,1762859432260,-915.68841967,0.00015271,2]
[393620735,1762859432271,-1244.62032838,0.00015271,2]
[393620736,1762859432280,-920.65,0.00015317,2]
[393620737,1762859432289,-2269.49402773,0.00015336,2]
[393620738,1762859432298,-2378.67930741,0.00015401,2]
[393620739,1762859432307,-500.0,0.00015407,2]
[393620740,1762859432317,-552.0,0.00015457,2]
[393620741,1762859432326,-165.05143023,0.00015458,2]
[393620742,1762859432335,-607.21607556,0.00015458,2]
[393620743,1762859432346,-440.89474525,0.00015458,2]
[393620744,1762859432355,-169.10808692,0.00015458,2]
[393620745,1762859432364,-239.19117816,0.00015458,2]
[393620746,1762859432372,-386.77298701,0.00015458,2]
[393620747,1762859432383,-50.14251468,0.00015458,2]
[393620748,1762859432393,-477.00189762,0.00015466,2]
[393620749,1762859432404,-2010.86268948,0.00015466,2]
[393620751,1762859432414,-300.0,0.00015521,2]
[393620753,1762859432423,-151.0,0.00015522,2]
[393620754,1762859432433,-151.0,0.00015522,2]
[393620755,1762859432442,-151.0,0.00015522,2]
[393620756,1762859432451,-151.0,0.00015522,2]
[393620757,1762859432461,-151.0,0.00015522,2]
[393620758,1762859432470,-151.0,0.00015522,2]
[393620759,1762859432479,-257.54438633,0.00015522,2]
[393620760,1762859432489,-151.0,0.00015522,2]
[393620761,1762859432498,-151.0,0.00015522,2]
[393620762,1762859432507,-151.0,0.00015522,2]
[393620763,1762859432516,-151.0,0.00015522,2]
[393620764,1762859432526,-151.0,0.00015522,2]
[393620765,1762859432539,-151.0,0.00015522,2]
[393620766,1762859432549,-151.0,0.00015522,2]
[393620767,1762859432558,-151.0,0.00015522,2]
[393620768,1762859432568,-151.0,0.00015522,2]
[393620769,1762859432577,-151.0,0.00015522,2]
[393620770,1762859432586,-151.0,0.00015522,2]
[393620771,1762859432595,-151.0,0.00015522,2]
[393620772,1762859432605,-151.0,0.00015522,2]
[393620773,1762859432615,-151.0,0.00015522,2]
[393620774,1762859432624,-151.0,0.00015522,2]
[393620775,1762859432633,-151.0,0.00015522,2]
[393620776,1762859432642,-151.0,0.00015522,2]
[393620777,1762859432651,-151.0,0.00015522,2]
[393620778,1762859432660,-151.0,0.00015522,2]
[393620779,1762859432670,-151.0,0.00015522,2]
[393620780,1762859432679,-448.86732444,0.00015531,2]
[393620781,1762859432690,-1014.88859335,0.00015531,2]
[393620782,1762859432701,-1133.293949,0.00015531,2]
[393620783,1762859432710,-434.7518673,0.0001554,2]
[393620784,1762859432720,-500.0,0.0001554,2]
[393620785,1762859432729,-3449.2806866,0.0001554,2]
[393620786,1762859432740,-1402.8816069,0.0001554,2]
[393620787,1762859432751,-500.0,0.0001554,2]
[393620788,1762859432762,-485.3359864,0.0001554,2]
[393620792,1762859438104,-30.97706678,0.0001554,2]
[393620793,1762859438114,-188.79791357,0.0001554,2]
[393620794,1762859438123,-448.54454109,0.0001554,2]
[393620795,1762859438135,-51.45545891,0.0001554,2]
[393620796,1762859438144,-224.46836519,0.0001554,2]
[393620797,1762859438154,-500.0,0.0001554,2]
[393620798,1762859438163,-500.0,0.0001554,2]
[393620799,1762859438173,-500.0,0.0001554,2]
[393620800,1762859438183,-500.0,0.0001554,2]
[393620801,1762859438193,-500.0,0.0001554,2]
[393620802,1762859438203,-500.0,0.0001554,2]
[393620803,1762859438212,-500.0,0.0001554,2]
[393620804,1762859438222,-500.0,0.0001554,2]
[393620805,1762859438232,-500.0,0.0001554,2]
[393620806,1762859438241,-500.0,0.0001554,2]
[393620807,1762859438251,-500.0,0.0001554,2]
[393620808,1762859438260,-500.0,0.0001554,2]
[393620809,1762859438270,-500.0,0.0001554,2]
[393620810,1762859438279,-500.0,0.0001554,2]
[393620811,1762859438288,-500.0,0.0001554,2]
[393620812,1762859438298,-500.0,0.0001554,2]
[393620813,1762859438308,-500.0,0.0001554,2]
[393620815,1762859438317,-500.0,0.0001554,2]
[393620816,1762859438327,-500.0,0.0001554,2]
[393620818,1762859438337,-552.65060197,0.0001554,2]
[393620820,1762859438346,-500.0,0.0001554,2]
[393620822,1762859438355,-500.0,0.0001554,2]
[393620824,1762859438366,-228.23987114,0.0001554,2]
[393620826,1762859438376,-420000.0,0.00015541,2]
[393620828,1762859438386,-166.66,0.00015558,2]
[393620830,1762859438397,-579.12588256,0.00015573,2]
[393620832,1762859438407,-500.0,0.00015573,2]
[393620834,1762859438418,-500.0,0.0001564,2]
[393620836,1762859438427,-500.0,0.0001564,2]
[393620837,1762859438437,-500.0,0.0001564,2]
[393620838,1762859438447,-500.0,0.0001564,2]
[393620839,1762859438456,-920.65,0.00015799,2]
[393620840,1762859438466,-920.65,0.00016281,2]
[393620841,1762859438476,-1543.46,0.00016438,2]
[393620842,1762859438486,-250.0,0.00016513,2]
[393620843,1762859438496,-300.0,0.00016638,2]
[393620844,1762859438506,-300.0,0.00016705,2]
[393620845,1762859438516,-420.0,0.00016705,2]
[393620846,1762859438526,-1200.0,0.00016723,2]
[393620847,1762859438540,-920.65,0.00016763,2]
[393620848,1762859438549,-999.99,0.00016922,2]
[393620849,1762859438559,-150.99,0.00016922,2]
[393620850,1762859438570,-299.99,0.00016922,4]
[393620851,1762859438581,-150.99,0.00016922,2]
[393620852,1762859438591,-1726.54,0.00016922,2]
[393620853,1762859438601,-12031.7,0.00016922,2]
[393620854,1762859438611,-3617.23,0.00016922,2]
[393620855,1762859438621,-9999.99,0.00016922,2]
[393620856,1762859438630,-9999.99,0.00016922,2]
[393620857,1762859438640,-920.65,0.00017246,2]
[393620858,1762859438650,-920.65,0.00017728,2]
[393620859,1762859438660,-1048.11082081,0.00018159,2]
[393620860,1762859438670,-436.91550164,0.00018159,2]
[393620861,1762859438679,-920.65,0.0001821,2]
[393620862,1762859438689,-300.0,0.00018278,2]
[393620863,1762859438698,-500.0,0.00018533,2]
[393620864,1762859438708,-920.65,0.00018692,2]
[393620865,1762859438718,-500.0,0.00019178,2]
[393620866,1762859438728,-500.0,0.00019178,2]
[393620867,1762859438738,-500.0,0.00019178,2]
[393620868,1762859438747,-500.0,0.00019338,2]
[393620869,1762859438760,-500.0,0.00019338,2]
[393620870,1762859438770,-500.0,0.00019338,2]
[393620871,1762859438780,-274.74,0.00020187,2]
[393620872,1762859438790,-1048.11082081,0.00020859,2]
[393620873,1762859438801,-436.91550164,0.00020859,2]
[393620874,1762859438811,-150.0,0.00021239,2]
[393620875,1762859438821,-435.17,0.00021239,2]
[393620876,1762859438834,-435.17,0.00022035,2]
[393620877,1762859438844,-435.17,0.00022832,2]
[393620878,1762859438854,-1048.11082081,0.0002356,2]
[393620879,1762859438863,-436.91550164,0.0002356,2]
[393620880,1762859438873,-435.17,0.00023628,2]
[393620881,1762859438883,-435.17,0.00024425,2]
[393620882,1762859438892,-151.06,0.00024658,2]
[393620883,1762859438902,-500.0,0.00024798,2]
[393620884,1762859438912,-500.0,0.00024798,2]
[393620885,1762859438922,-500.0,0.00024799,2]
[393620886,1762859438931,-551.52088587,0.00024799,2]
[393620887,1762859438941,-500.0,0.00024799,2]
[393620888,1762859438950,-500.0,0.00024799,2]
[393620889,1762859438960,-157654.950801,0.000248,3]
[393620890,1762859438969,-26821.9175815,0.000249,3]
[393620891,1762859438979,-1006.84,0.00025,2]
[393620892,1762859438988,-4926.71721252,0.0002549,3]
[393620893,1762859438998,-1006.84,0.000255,2]
[393620894,1762859439007,-150.0,0.00026069,2]
[393620895,1762859439017,-1048.11082081,0.0002626,2]
[393620896,1762859439027,-436.91550164,0.0002626,2]
[393620897,1762859439036,-274.74,0.00026676,2]
[393620898,1762859439045,-1543.46,0.00027671,2]
[393620899,1762859439055,-1048.11082081,0.00028961,2]
[393620900,1762859439065,-436.91550164,0.00028961,2]
[393620901,1762859439074,-4926.71721252,0.00031651,3]
[393620902,1762859439085,-1048.11082081,0.00031661,2]
[393620903,1762859439094,-436.91550164,0.00031661,2]
[393620904,1762859439103,-200.0,0.00032,120]
[393620905,1762859439113,-8940.63919384,0.0003223,3]
[393620906,1762859439122,-4926.71721252,0.0003224,3]
[393620907,1762859439132,-478.44322026,0.0003225,120]
[393620908,1762859439142,-500.0,0.0003225,120]
[393620909,1762859439151,-500.0,0.0003225,120]
[393620910,1762859439161,-500.0,0.0003225,120]
[393620911,1762859439171,-500.0,0.0003225,120]
[393620912,1762859439181,-500.0,0.0003225,120]
[393620913,1762859439191,-500.0,0.0003225,120]
[393620914,1762859439200,-500.0,0.0003225,120]
[393620915,1762859439210,-500.0,0.0003225,120]
[393620916,1762859439219,-500.0,0.0003225,120]
[393620917,1762859439228,-500.0,0.0003225,120]
[393620918,1762859439238,-500.0,0.0003225,120]
[393620919,1762859439247,-500.0,0.0003225,120]
[393620920,1762859439258,-500.0,0.0003225,120]
[393620921,1762859439267,-500.0,0.0003225,120]
[393620922,1762859439277,-500.0,0.0003225,120]
[393620923,1762859439286,-500.0,0.0003225,120]
[393620924,1762859439296,-500.0,0.0003225,120]
[393620925,1762859439308,-500.0,0.0003225,120]
[393620926,1762859439318,-500.0,0.0003225,120]
[393620927,1762859439328,-500.0,0.0003225,120]
[393620928,1762859439339,-500.0,0.0003225,120]
[393620929,1762859439348,-500.0,0.0003225,120]
[393620930,1762859439358,-500.0,0.0003225,120]
[393620931,1762859439530,-500.0,0.0003225,120]
[393620932,1762859439540,-500.0,0.0003225,120]
[393620933,1762859439550,-500.0,0.0003225,120]
[393620934,1762859439560,-500.0,0.0003225,120]
[393620935,1762859439570,-4926.71721252,0.00032677,3]
[393620936,1762859439580,-1281.188,0.00032687,33]
[393620937,1762859439589,-182.369,0.00032687,33]
[393620938,1762859439600,-5516.0,0.000327,3]
[393620939,1762859439610,-274.74,0.00033165,2]
[393620940,1762859439620,-8940.63919384,0.0003339,3]
[393620941,1762859439630,-5516.0,0.000336,5]
[393620942,1762859439640,-200.0,0.00034,120]
[393620943,1762859439650,-4926.71721252,0.0003407,3]
[393620944,1762859439659,-1048.11082081,0.00034362,2]
[393620945,1762859439669,-436.91550164,0.00034362,2]
[393620946,1762859439678,-4926.71721252,0.0003458,3]
[393620947,1762859439688,-8940.63919384,0.0003458,3]
[393620948,1762859439698,-906.0,0.00035592,2]
[393620949,1762859439707,-1681.87589554,0.000362,2]
[393620950,1762859439717,-4926.71721252,0.00036419,4]
[393620951,1762859439727,-500.0,0.00036439,30]
[393620952,1762859439737,-500.0,0.00036439,120]
[393620953,1762859439747,-200.0,0.00036481,2]
[393620954,1762859439761,-150.0,0.00036672,2]
[393620955,1762859439771,-616.7351745,0.0003684,2]
[393620956,1762859439780,-8940.63919384,0.00036883,4]
[393620957,1762859439789,-500.0,0.00036903,120]
[393620958,1762859439800,-723.3313775,0.00037007,2]
[393620959,1762859439810,-4926.71721252,0.00037052,4]
[393620960,1762859439820,-1048.11082081,0.00037062,2]
[393620961,1762859439830,-436.91550164,0.00037062,2]
[393620962,1762859439840,-168.0,0.00037072,2]
[393620963,1762859439849,-150.219,0.00037104,2]
[393620964,1762859439859,-240.0,0.00037168,7]
[393620965,1762859439869,-829.9275805,0.00037174,2]
[393620966,1762859439879,-168.0,0.00037216,2]
[393620967,1762859439889,-1000.0,0.000373,7]
[393620968,1762859439899,-936.52378349,0.00037341,2]
[393620969,1762859439909,-1056.0,0.00037359,7]
[393620970,1762859439918,-3280.0,0.00037489,5]
[393620971,1762859439928,-500.0,0.00037489,2]
[393620972,1762859439937,-500.0,0.00037489,7]
[393620973,1762859439947,-1043.11998649,0.00037509,2]
[393620974,1762859439956,-168.0,0.00037644,7]
[393620975,1762859439965,-667.05,0.00037652,2]
[393620976,1762859439974,-1149.71618949,0.00037676,2]
[393620977,1762859439984,-1256.31239249,0.00037843,2]
[393620978,1762859439993,-168.0,0.00037851,2]
[393620979,1762859440002,-4926.71721252,0.0003789,4]
[393620980,1762859440012,-240.0,0.00037891,120]
[393620981,1762859440022,-1000.0,0.000379,7]
[393620982,1762859440032,-168.0,0.00037934,2]
[393620983,1762859440043,-168.0,0.00037981,2]
[393620984,1762859440052,-243.43683937,0.00038,120]
[393620985,1762859440062,-1362.90859549,0.00038011,2]
[393620986,1762859440071,-8940.63919384,0.00038148,4]
[393620987,1762859440082,-154.13,0.0003815,14]
[393620988,1762859440092,-4926.71721252,0.00038158,4]
[393620989,1762859440102,-500.0,0.00038167,2]
[393620990,1762859440111,-1469.50479849,0.00038178,2]
[393620991,1762859440121,-8940.63919384,0.00038207,4]
[393620992,1762859440131,-500.0,0.00038217,7]
[393620993,1762859440140,-500.0,0.00038217,7]
[393620994,1762859440150,-500.0,0.00038217,7]
[393620995,1762859440159,-240.0,0.00038327,2]
[393620996,1762859440169,-1576.10100149,0.00038345,2]
[393620997,1762859440178,-915.14,0.00038356,120]
[393620998,1762859440187,-915.14,0.00038356,120]
[393620999,1762859440197,-915.14,0.00038356,120]
[393621000,1762859440206,-915.14,0.00038356,120]
[393621001,1762859440216,-915.14,0.00038356,120]
[393621002,1762859440225,-500.0,0.00038356,2]
[393621003,1762859440235,-500.0,0.00038356,2]
[393621004,1762859440245,-168.0,0.00038423,2]
[393621005,1762859440254,-240.0,0.00038468,2]
[393621006,1762859440263,-1682.69720449,0.00038513,2]
[393621007,1762859440273,-906.0,0.00038592,2]
[393621008,1762859440283,-8940.63919384,0.0003865,4]
[393621009,1762859440292,-1789.29340749,0.0003868,2]
[393621010,1762859440301,-168.0,0.00038787,120]
[393621011,1762859440311,-1895.88961049,0.00038847,2]
[393621012,1762859440320,-200.82425169,0.00038863,11]
[393621013,1762859440331,-8940.63919384,0.00038894,4]
[393621014,1762859440340,-1261.42212681,0.000389,60]